Workbook

Sheet CAPEX
A1: CRONOGRAMA FINANCEIRO (VALORES EM R$)
A2: ITEM | B2: DESCRIÇÃO | C2: TOTAL | D2: 1 | E2: 2 | F2: 3 | G2: 4 | H2: 5 | I2: 6 | J2: 7 | K2: 8 | L2: 9 | M2: 10 | N2: 11 | O2: 12 | P2: 13 | Q2: 14 | R2: 15 | S2: 16 | T2: 17 | U2: 18 | V2: 19 | W2: 20
A3: A | B3: CAPEX
A4: 1 | B4: Implantação de Sistema de Gestão e Certificação | C4: =SUM(C5) -> 125000 | D4: 0 | E4: 0 | F4: 0 | G4: 0 | H4: 0 | I4: 0 | J4: 0 | K4: 0 | L4: 0 | M4: 0 | N4: 0 | O4: 0 | P4: 0 | Q4: 0 | R4: 0 | S4: 0 | T4: 0 | U4: 0 | V4: 0 | W4: 0
A5: 1.1 | B5: Implantação de Sistema de Gestão e Certificação | C5: =SUM(D5:O5) -> 125000 | D5: 125000 | E5: 0 | F5: 0 | G5: 0 | H5: 0 | I5: 0 | J5: 0 | K5: 0 | L5: 0 | M5: 0 | N5: 0 | O5: 0 | P5: 0 | Q5: 0 | R5: 0 | S5: 0 | T5: 0 | U5: 0 | V5: 0 | W5: 0
A6: 2 | B6: Total | C6: =C4 -> 125000 | D6: =SUM(D4:D5) -> 125000 | E6: 0 | F6: 0 | G6: 0 | H6: 0 | I6: 0 | J6: 0 | K6: 0 | L6: 0 | M6: 0 | N6: 0 | O6: 0 | P6: 0 | Q6: 0 | R6: 0 | S6: 0 | T6: 0 | U6: 0 | V6: 0 | W6: 0

Sheet OPEX
A1: CRONOGRAMA FINANCEIRO (VALORES EM R$)
A2: ITEM | B2: DESCRIÇÃO | C2: TOTAL | D2: 1 | E2: 2 | F2: 3 | G2: 4 | H2: 5 | I2: 6 | J2: 7 | K2: 8 | L2: 9 | M2: 10 | N2: 11 | O2: 12 | P2: 13 | Q2: 14 | R2: 15 | S2: 16 | T2: 17 | U2: 18 | V2: 19 | W2: 20
A3: 1 | B3: Trabalhos Iniciais | C3: 152016.55
A4: 1.1 | B4: Destinação de resíduos | C4: =SUM(D4:W4) -> 147156.15 | D4: =D15*'Composição de Preços '!$C$6 -> 69351.325 | E4: =E15*'Composição de Preços '!$C$6 -> 69351.325 | F4: =F15*'Composição de Preços '!$C$6 -> 0 | G4: =G15*'Composição de Preços '!$C$6 -> 0 | H4: =H15*'Composição de Preços '!$C$6 -> 0 | I4: =I15*'Composição de Preços '!$C$6 -> 0 | J4: =J15*'Composição de Preços '!$C$6 -> 0 | K4: =K15*'Composição de Preços '!$C$6 -> 8453.5
A5: 2 | B5: Trabalhos de Atualização da Rede | C5: =SUM(C6:C6) -> 166285.623
A6: 2.1 | B6: Destinação de resíduos | C6: =SUM(D6:W6) -> 166285.623 | O6: =O15*'Composição de Preços '!$C$6 -> 1500.576 | P6: =P15*'Composição de Preços '!$C$6 -> 75382.977 | Q6: =Q15*'Composição de Preços '!$C$6 -> 75455.1 | R6: =R15*'Composição de Preços '!$C$6 -> 887.4 | S6: =S15*'Composição de Preços '!$C$6 -> 887.4 | T6: =T15*'Composição de Preços '!$C$6 -> 887.4 | U6: =U15*'Composição de Preços '!$C$6 -> 971.935 | V6: =V15*'Composição de Preços '!$C$6 -> 971.935 | W6: =W15*'Composição de Preços '!$C$6 -> 9340.9
A7: 3 | B7: Manutenção de Sistema de Gestão e Certificação | C7: =C8 -> 450000
A8: 3.1 | B8: Manutenção/Auditorias de Sistema de Gestão e Certificação | C8: =SUM(D8:W8) -> 450000 | F8: ='Composição de Preços '!C24 -> 50000 | H8: ='Composição de Preços '!C24 -> 50000 | J8: ='Composição de Preços '!C24 -> 50000 | L8: ='Composição de Preços '!C24 -> 50000 | N8: ='Composição de Preços '!C24 -> 50000 | P8: ='Composição de Preços '!C24 -> 50000 | R8: ='Composição de Preços '!C24 -> 50000 | T8: ='Composição de Preços '!C24 -> 50000 | V8: ='Composição de Preços '!C24 -> 50000
A9: 4 | B9: Resíduos Comuns | C9: 600000
A10: 4.1 | B10: Destinação de resíduos comuns - Classe II (CCO, Áreas de Apoio e etc.) | C10: =SUM(D10:W10) -> 600000 | D10: 30000 | E10: 30000 | F10: 30000 | G10: 30000 | H10: 30000 | I10: 30000 | J10: 30000 | K10: 30000 | L10: 30000 | M10: 30000 | N10: 30000 | O10: 30000 | P10: 30000 | Q10: 30000 | R10: 30000 | S10: 30000 | T10: 30000 | U10: 30000 | V10: 30000 | W10: 30000
A11: 4 | B11: Total | C11: =C3+C5+C7+C9 -> 1368302.173 | D11: =SUM(D3:D10) -> 99351.325 | E11: 99351.325 | F11: 80000 | G11: 30000 | H11: 80000 | I11: 30000 | J11: 80000 | K11: 38453.5 | L11: 80000 | M11: 30000 | N11: 80000 | O11: 31500.576 | P11: 155382.977 | Q11: 105455.1 | R11: 80887.4 | S11: 30887.4 | T11: 80887.4 | U11: 30971.935 | V11: 80971.935 | W11: 39340.9
B14: DESCRIÇÃO | C14: TOTAL | D14: 1 | E14: 2 | F14: 3 | G14: 4 | H14: 5 | I14: 6 | J14: 7 | K14: 8 | L14: 9 | M14: 10 | N14: 11 | O14: 12 | P14: 13 | Q14: 14 | R14: 15 | S14: 16 | T14: 17 | U14: 18 | V14: 19 | W14: 20
B15: Total de Pontos Substituídos | C15: =SUM(D15:W15) -> 216681.36 | D15: =SUM(D16:D17) -> 47828.5 | E15: =SUM(E16:E17) -> 47828.5 | F15: 0 | G15: 0 | H15: 0 | I15: 0 | J15: 0 | K15: 5830 | L15: 0 | M15: 0 | N15: 514.62 | O15: 1034.88 | P15: 51988.26 | Q15: 52038 | R15: 612 | S15: 612 | T15: 612 | U15: 670.3 | V15: 670.3 | W15: 6442
B16: Pontos Substituídos | C16: =SUM(D16:W16) -> 214405 | D16: 47828.5 | E16: 47828.5 | F16: 0 | G16: 0 | H16: 0 | I16: 0 | J16: 0 | K16: 5830 | L16: 0 | M16: 0 | N16: 0 | O16: 0 | P16: 51462 | Q16: 52026 | R16: 600 | S16: 600 | T16: 600 | U16: 600 | V16: 600 | W16: 6430
B17: Pontos Substituídos por falha fora de garantia | C17: =SUM(D17:W17) -> 2276.36 | D17: 0 | E17: 0 | F17: 0 | G17: 0 | H17: 0 | I17: 0 | J17: 0 | K17: 0 | L17: 0 | M17: 0 | N17: 514.62 | O17: 1034.88 | P17: 526.26 | Q17: 12 | R17: 12 | S17: 12 | T17: 12 | U17: 70.3 | V17: 70.3 | W17: 12

Sheet Composição de Preços
A1: PPP - Iluminação Pública da Área Urbana de Porto Alegre - RS
A3: Serviços de destinação de resíduos perigosos - Classe I | I3: Composição de Valores para Destinação Final de Lâmpadas
A4: Trabalhos Iniciais | I4: Empresa 1 - Recilux Reciclagem de Lâmpadas | J4: Empresa 2 - AGR Ambiental Gestão de Resíduos
A5: Destinação Final de Lâmpadas | B5: Quantidades | C5: Valor Unitário | I5: 1 | J5: 1.9
A6: (Vapor de Sódio; Vapor Metálico; Vapor de Mercúrio;LED;Fluorescente;Mista | B6: =OPEX!C15 -> 216681.36 | C6: =J6 -> 1.45 | I6: Valor Médio para descarte unitário | J6: =(J5+I5)/2 -> 1.45
A7: Total | B7: =SUM(B6:B6) -> 216681.36 | C7: =C6*B7 -> 314187.972
A8: Valor médio entre 2 orçamentos apresentados por empresas que realizam este tipo de operação.
A11: Taxa Para Transporte de Produtos Perigosos | B11: Quantidades | C11: Valor Unitário*
A12: Transporte de resíduos por empresa devidamente licenciada | B12: 12 | C12: 0
A13: Total | C13: =C12*B12 -> 0
A14: * Valor estimado após consulta no mercado, onde existe grande disponibilidade de empresas na região, podendo haver isenção do valor de frete. Ressalta-se que pode sofrer alterações de devido ao local de escolha para destinação final.
A17: Autorização para Movimentação de Resíduos Perigosos | B17: Quantidades | C17: Valor Unitário
A18: Obtenção de certificado de Movimentação de Resíduos Perigosos junto ao órgão ambiental | B18: - | C18: 2000
A19: Total | C19: 0
A22: Sistema de Gestão e Certificação | B22: Quantidades | C22: Valor Unitário | I22: Implantação de Gestão e Certificação
A23: Implantação de Sistema de Gestão e Certificação | B23: 1 | C23: 125000 | I23: Valor de Mercado - Consultoria Ambiental / Certificadora | J23: 75000
A24: Auditorias e Certificações a cada 2 anos | B24: 9 | C24: 50000
A25: Total | C25: =(C23*B23)+(C24*B24) -> 575000 | I25: Auditoria e Manutenção da Certificação
I26: Valor de Mercado - Consultória Ambiental / Certificadora | J26: 25000
A29: Destinação de Resíduos Comum | B29: Quantidade | C29: Valor Unitário
A30: Considerado valor de acordo as atividades e números de funcionários | B30: mês | C30: 2500
B31: por ano | C31: =C30*12 -> 30000
A32: * Valor de mercado para coleta, transporte e destinação final. Cotação com Multilixo e Corpus Saneamento e Obras. | B32: TOTAL | C32: =C31*20 -> 600000
